bitfinex-derivatives/quotes_SOLF0:USTF0_20250224
["timestamp","ask_amount","ask_price","bid_price","bid_amount"]
[1740371020166,3.8984,160.57,160.46,25.11314593]
[1740371020167,8.68,160.57,160.46,25.11314593]
[1740371020362,8.68,160.57,160.45,0.04666534]
[1740371020363,8.68,160.57,160.49,6.2311]
[1740371020668,25.11314593,160.56,160.47,3.9127]
[1740371021069,25.11314593,160.54,160.44,25.11314593]
[1740371021269,25.11314593,160.54,160.5,0.04332833]
[1740371022468,25.11314593,160.52,160.42,3.9127]
[1740371022967,25.11314593,160.5,160.42,3.9127]
[1740371023671,0.04643374,160.48,160.44,0.04035052]
[1740371023875,0.04643374,160.48,160.41,3.8423]
[1740371024073,0.04643374,160.48,160.44,0.04335447]
[1740371025873,0.04643374,160.48,160.44,6.27645447]
[1740371026077,0.04643374,160.48,160.44,0.04335447]
[1740371029378,0.04643374,160.48,160.44,3.92065447]
[1740371029776,0.04643374,160.48,160.45,3.8417]
[1740371029979,0.04643374,160.48,160.47,6.2321]
[1740371031980,0.04643374,160.48,160.46,6.2324]
[1740371032380,0.04643374,160.48,160.45,3.8417]
[1740371032577,0.04643374,160.48,160.44,3.92065447]
[1740371032781,0.04643374,160.48,160.44,0.04335447]
[1740371044682,0.04643374,160.48,160.44,6.27665447]
[1740371046187,0.04643374,160.48,160.45,6.2328]
[1740371049089,0.04643374,160.48,160.44,3.87915447]
[1740371049290,0.04643374,160.48,160.44,7.74285447]
[1740371049490,0.04643374,160.48,160.45,25.174429]
[1740371049887,0.04643374,160.48,160.45,29.073329]
[1740371050081,11.51299768,160.55,160.48,6.2315]
[1740371050589,11.51299768,160.57,160.49,25.174429]
[1740371050788,1.2319954,160.6,160.51,31.404729]
[1740371050990,9.9119954,160.6,160.51,31.404729]
[1740371051180,9.9119954,160.6,160.52,6.2302]
[1740371051384,1.2319954,160.6,160.54,0.03928355]
[1740371053187,101.234965,160.62,160.54,0.03928355]
[1740371053591,37.617029,160.64,160.54,0.03928355]
[1740371053789,1.12782894,160.63,160.54,6.2293]
[1740371053990,37.617029,160.64,160.57,0.04042539]
[1740371054191,11.51096316,160.63,160.57,0.04042539]
[1740371054495,25.174429,160.62,160.57,0.04042539]
[1740371054682,11.51096316,160.63,160.57,0.04042539]
[1740371054887,37.617029,160.64,160.57,0.04042539]
[1740371055087,25.174429,160.66,160.57,0.04042539]
[1740371055291,1.12786311,160.65,160.57,6.2282]
[1740371055494,1.12786311,160.65,160.6,0.04765554]
[1740371056802,36.68539216,160.68,160.6,0.04765554]
[1740371057094,1.12751758,160.67,160.6,0.04765554]
[1740371057297,11.51096316,160.68,160.6,0.04765554]
[1740371058389,11.51096316,160.68,160.61,25.174429]
[1740371058593,11.51096316,160.68,160.61,32.809029]
[1740371058890,11.51096316,160.68,160.63,25.174429]
[1740371059290,11.51096316,160.68,160.64,0.04275304]
[1740371060496,36.68539216,160.68,160.64,0.04275304]
[1740371060897,11.51096316,160.68,160.64,0.04275304]
[1740371061399,11.51096316,160.66,160.64,0.04275304]
[1740371062098,11.51096316,160.73,160.64,0.04275304]
[1740371062293,26.3028515,160.72,160.61,25.174429]
[1740371062493,25.174429,160.7,160.67,3.294e-05]
[1740371062693,1.1284225,160.69,160.59,25.174429]
[1740371063490,25.174429,160.68,160.59,25.174429]
[1740371063695,0.0426788,160.66,160.62,0.04077443]
[1740371064292,25.2171078,160.66,160.62,0.04077443]
[1740371064498,25.174429,160.64,160.55,7.6346]
[1740371065004,16.3464,160.66,160.57,25.174429]
[1740371065193,8.66,160.66,160.59,25.174429]
[1740371065401,8.66,160.66,160.59,31.401829]
[1740371065600,8.66,160.66,160.61,25.174429]
[1740371065801,0.04166942,160.64,160.61,25.22123582]
[1740371066602,1.12923257,160.7,160.63,25.174429]
[1740371066799,3.8377,160.72,160.63,31.400329]
[1740371067105,1.12925765,160.71,160.63,25.174429]
[1740371067402,1.12925765,160.71,160.62,7.558]
[1740371067804,0.0407975,160.68,160.65,0.04668577]
[1740371069098,0.0407975,160.68,160.65,6.27148577]
[1740371069604,0.0407975,160.68,160.65,0.04668577]
[1740371069804,0.0407975,160.68,160.67,6.2244]
[1740371070104,0.0407975,160.68,160.65,0.04668577]
[1740371070502,3.7748,160.77,160.65,0.04668577]
[1740371070703,1.13030341,160.76,160.63,40.17846977]
[1740371070904,1.13030341,160.76,160.66,40.17846977]
[1740371071404,40.17846977,160.79,160.68,6.2239]
[1740371071605,1.13064863,160.78,160.69,0.04367197]
[1740371071805,1.13064863,160.78,160.68,6.2239]
[1740371072106,40.17846977,160.79,160.72,0.04476488]
[1740371072304,1.13073748,160.78,160.72,0.04476488]
[1740371073608,11.4029,160.8,160.72,0.04476488]
[1740371073806,1.1307104,160.79,160.72,0.04476488]
[1740371074902,8.66,160.83,160.72,0.04476488]
[1740371075103,40.17846977,160.85,160.72,40.17846977]
[1740371075104,1.1306594,160.82,160.72,40.17846977]
[1740371075302,1.1306594,160.83,160.76,0.0418204]
[1740371075506,1.1306594,160.82,160.76,0.0418204]
[1740371075709,1.1306594,160.81,160.76,0.0418204]
[1740371076009,8.66,160.84,160.76,0.0418204]
[1740371076204,1.13040673,160.83,160.76,0.0418204]
[1740371077610,1.13041496,160.82,160.76,0.0418204]
[1740371077810,8.66,160.84,160.76,0.0418204]
[1740371078010,1.13047427,160.83,160.76,0.0418204]
[1740371078412,40.17846977,160.85,160.76,0.0418204]
[1740371078611,1.13086221,160.84,160.76,0.0418204]
[1740371080512,1.13086221,160.84,160.76,6.2627204]
[1740371080913,8.66,160.86,160.76,6.2627204]
[1740371081112,1.13087787,160.85,160.76,6.2209]
[1740371081309,1.13087787,160.85,160.79,0.04294399]
[1740371082815,8.66,160.86,160.79,0.04294399]
[1740371083008,1.13073467,160.85,160.79,0.04294399]
[1740371083514,8.66,160.85,160.79,0.04294399]
[1740371083716,1.13073467,160.84,160.79,0.04294399]
[1740371084516,8.66,160.85,160.79,0.04294399]
[1740371084817,1.13061894,160.84,160.79,0.04294399]
[1740371086218,8.66,160.85,160.79,0.04294399]
[1740371086516,1.13030328,160.84,160.79,0.04294399]
[1740371087616,25.08636001,160.8,160.7,7.5816]
[1740371088317,25.08636001,160.78,160.67,25.08636001]
[1740371088512,25.08636001,160.76,160.65,32.75156001]
[1740371088713,0.04175509,160.74,160.71,0.04057161]
[1740371091319,25.1281151,160.74,160.71,0.04057161]
[1740371092216,0.04175509,160.74,160.71,0.04057161]
[1740371094619,0.04175509,160.74,160.71,6.26307161]
[1740371094817,0.04175509,160.74,160.71,0.04057161]
[1740371096820,0.04175509,160.74,160.71,25.12693162]
[1740371097020,0.04175509,160.74,160.73,6.2221]
[1740371097217,18.68,160.91,160.73,6.2221]
[1740371097218,1.12969343,160.81,160.73,25.08636001]
[1740371097423,3.7955,160.87,160.76,25.08636001]
[1740371097611,1.12992091,160.86,160.76,25.08636001]
[1740371098118,1.12992091,160.86,160.79,6.2197]
[1740371098320,1.12992091,160.86,160.79,6.26209293]
[1740371098514,1.12992091,160.86,160.79,6.26199293]
[1740371098719,1.12992091,160.86,160.79,0.04239293]
[1740371100219,1.13059587,160.85,160.79,0.04239293]
[1740371100415,25.08636001,160.84,160.79,0.04239293]
[1740371100818,1.1304269,160.83,160.79,0.04239293]
[1740371101218,25.08636001,160.82,160.79,0.04239293]
[1740371102121,25.08636001,160.8,160.7,25.08636001]
[1740371102324,33.74636001,160.8,160.68,25.08636001]
[1740371102824,33.74636001,160.8,160.68,29.02126001]
[1740371103220,0.04094993,160.76,160.72,0.04057999]
[1740371107928,0.04094993,160.76,160.64,40.14354324]
[1740371108229,1.13088645,160.77,160.64,40.14354324]
[1740371108827,1.13088645,160.77,160.68,6.2237]
[1740371109026,1.13088645,160.77,160.69,0.04498489]
[1740371109027,0.0468592,160.72,160.69,0.04498489]
[1740371110222,0.0468592,160.72,160.69,6.26848489]
[1740371110433,0.0468592,160.72,160.69,0.04498489]
[1740371113328,0.0468592,160.72,160.69,6.26848489]
[1740371114329,0.0468592,160.72,160.69,0.04498489]
[1740371122739,0.0468592,160.72,160.69,8.489e-05]
[1740371126941,25.15210005,160.72,160.69,8.489e-05]
[1740371127841,1.1291002,160.71,160.69,8.489e-05]
[1740371128039,8.66,160.7,160.69,8.489e-05]
[1740371130340,33.76524085,160.7,160.69,8.489e-05]
[1740371130538,38.73168534,160.7,160.58,31.33274085]
[1740371130738,25.10524085,160.68,160.58,31.33274085]
[1740371131245,25.10524085,160.68,160.58,25.10524085]
[1740371131546,25.10524085,160.66,160.57,7.2418]
[1740371131741,0.04072055,160.65,160.61,0.0468682]
[1740371133154,25.10524085,160.64,160.61,6.82e-05]
[1740371133344,25.10524085,160.62,160.61,6.82e-05]
[1740371133547,33.76524085,160.62,160.61,6.82e-05]
[1740371133750,33.76524085,160.62,160.53,7.4894]
[1740371133945,25.10524085,160.59,160.53,3.8738]
[1740371135151,25.10524085,160.59,160.54,0.04188144]
[1740371135152,0.04006105,160.58,160.54,0.04188144]
[1740371135652,0.04006105,160.58,160.55,6.2287]
[1740371135850,0.04006105,160.58,160.54,0.04188144]
[1740371138960,0.04006105,160.58,160.54,8.144e-05]
[1740371138961,25.10524085,160.55,160.54,8.144e-05]
[1740371140362,25.10524085,160.55,160.48,3.6156]
[1740371140563,25.10524085,160.53,160.48,3.6156]
[1740371140760,25.10524085,160.53,160.46,7.6108]
[1740371141059,25.10524085,160.53,160.46,11.3825]
[1740371141363,0.04117007,160.51,160.48,0.04387812]
[1740371146560,25.10524085,160.49,160.48,0.04387812]
[1740371146959,25.10524085,160.49,160.48,7.812e-05]
[1740371147364,25.10524085,160.49,160.43,3.9329]
[1740371147561,25.10524085,160.47,160.43,3.9329]
[1740371148666,25.14942851,160.47,160.43,3.97323606]
[1740371149970,0.04418766,160.47,160.43,3.97323606]
[1740371151357,25.14942851,160.47,160.43,0.04033606]
[1740371151562,8.66,160.46,160.43,0.04033606]
[1740371152068,0.04418766,160.47,160.43,0.04033606]
[1740371153069,0.04418766,160.47,160.44,6.233]
[1740371153370,0.04418766,160.47,160.44,13.846]
[1740371153564,0.04418766,160.47,160.44,7.613]
[1740371153762,25.10524085,160.53,160.44,7.613]
[1740371153968,25.10524085,160.55,160.44,32.71824085]
[1740371154170,8.66,160.55,160.49,6.2313]
[1740371154360,25.10524085,160.57,160.48,25.10524085]
[1740371154564,8.66,160.58,160.5,25.10524085]
[1740371154870,8.66,160.58,160.51,7.613]
[1740371155072,0.04232866,160.56,160.53,6.2295]
[1740371155266,0.04232866,160.56,160.52,0.04246842]
[1740371155870,1.07337904,160.6,160.52,25.14770927]
[1740371156070,1.07337904,160.6,160.55,6.229]
[1740371156271,1.07337904,160.6,160.52,25.10524085]
[1740371156970,0.03937895,160.58,160.54,0.04287844]
[1740371157560,25.10524085,160.57,160.54,0.04287844]
[1740371158467,0.03937895,160.58,160.54,0.04287844]
[1740371163973,0.03937895,160.58,160.56,6.2286]
[1740371164272,25.10524085,160.65,160.56,6.2286]
[1740371164469,1.12913984,160.64,160.56,6.2286]
[1740371164874,1.12913984,160.64,160.54,25.10524085]
[1740371165069,8.66,160.68,160.56,25.10524085]
[1740371165275,0.04259715,160.61,160.57,0.04354198]
[1740371165474,26.23501878,160.67,160.59,6.2272]
[1740371165774,1.12977793,160.66,160.59,6.2272]
[1740371165970,25.10524085,160.67,160.59,6.2272]
[1740371166674,0.04781003,160.65,160.61,0.04460011]
[1740371169275,0.04781003,160.65,160.61,9.86520011]
[1740371169465,0.04781003,160.65,160.62,3.8471]
[1740371169868,0.04781003,160.65,160.63,6.2257]
[1740371170069,25.10524085,160.71,160.62,3.8471]
[1740371170375,25.10524085,160.73,160.62,28.95234085]
[1740371170564,25.10524085,160.75,160.64,25.10524085]
[1740371170769,33.76524085,160.75,160.64,25.10524085]
[1740371171171,0.03985053,160.71,160.68,0.04144176]
[1740371176182,25.14509138,160.71,160.68,0.04144176]
[1740371177081,25.10524085,160.69,160.68,4.176e-05]
[1740371177578,25.10524085,160.69,160.58,188.16524085]
[1740371177974,25.10524085,160.71,160.62,3.6455]
[1740371178174,25.10524085,160.71,160.62,7.5889]
[1740371178477,0.04498646,160.68,160.65,0.04666209]
[1740371178679,25.10524085,160.67,160.65,0.04666209]
[1740371179086,25.10524085,160.67,160.65,6.209e-05]
[1740371179275,25.10524085,160.67,160.58,163.06]
[1740371179479,25.10524085,160.64,160.58,163.06]
[1740371180587,0.04793642,160.63,160.59,0.045923]
[1740371182687,25.10524085,160.56,160.42,25.10524085]
[1740371182985,25.10524085,160.53,160.42,25.10524085]
[1740371183288,25.10524085,160.5,160.41,11.2861]
[1740371183691,0.04069392,160.47,160.44,0.04755682]
[1740371186983,40.28656383,160.54,160.44,0.04755682]
[1740371187190,40.28656383,160.54,160.41,11.2861]
[1740371187392,8.66,160.55,160.43,40.28656383]
[1740371187591,40.28656383,160.57,160.43,40.28656383]
[1740371187787,40.28656383,160.57,160.48,6.2317]
[1740371188294,0.04492061,160.54,160.51,0.03969537]
[1740371189284,40.33148444,160.54,160.51,9.537e-05]
[1740371190886,0.04492061,160.54,160.51,9.537e-05]
[1740371191686,40.28656383,160.53,160.51,9.537e-05]
[1740371192693,0.04492061,160.54,160.51,9.537e-05]
[1740371197106,8.66,160.62,160.51,9.537e-05]
[1740371197304,191.0,160.68,160.51,9.537e-05]
[1740371197600,48.94656383,160.64,160.53,6.2298]
[1740371197802,40.28656383,160.61,160.51,3.6627]
[1740371198402,0.04448758,160.58,160.54,0.04057058]
[1740371199705,40.33105141,160.58,160.54,0.04057058]
[1740371200600,0.04448758,160.58,160.54,0.04057058]
[1740371205604,25.19704973,160.58,160.54,0.04057058]
[1740371206908,25.15256215,160.55,160.54,0.04057058]
[1740371208808,25.15256215,160.57,160.54,0.04057058]
[1740371210412,25.15256215,160.55,160.54,0.04057058]
[1740371211407,25.15256215,160.55,160.47,3.8295]
[1740371211719,25.15256215,160.53,160.46,3.6092]
[1740371212513,0.03996045,160.51,160.48,0.04711494]
[1740371216210,0.03996045,160.51,160.48,6.27861494]
[1740371218419,0.03996045,160.51,160.48,0.04711494]
[1740371218616,25.15256215,160.49,160.36,34.28427756]
[1740371218811,25.15256215,160.49,160.38,11.1354]
[1740371219811,0.03943034,160.45,160.38,70.57223971]
[1740371220120,0.03943034,160.45,160.42,0.04726628]
[1740371223622,0.03943034,160.45,160.42,25.19982843]
[1740371223827,33.81256215,160.54,160.43,6.2337]
[1740371224016,33.81256215,160.54,160.42,25.15256215]
[1740371224216,1.12459596,160.53,160.42,25.15256215]
[1740371224521,25.15256215,160.52,160.4,25.15256215]
[1740371224722,25.15256215,160.5,160.4,25.15256215]
[1740371224924,0.04717842,160.47,160.43,0.04491762]
[1740371226224,25.15256215,160.46,160.43,0.04491762]
[1740371226923,0.04717842,160.47,160.43,0.04491762]
[1740371229325,25.19974057,160.47,160.43,0.04491762]
[1740371230827,0.04717842,160.47,160.43,0.04491762]
[1740371235427,0.04717842,160.47,160.43,25.19747977]
[1740371235729,11.44494209,160.53,160.45,25.15256215]
[1740371236024,29.10876215,160.55,160.46,7.5416]
[1740371236025,37.76876215,160.55,160.46,7.5416]
[1740371236419,25.15256215,160.53,160.46,3.5933]
[1740371236624,25.15256215,160.51,160.41,29.10086215]
[1740371236830,25.19675858,160.51,160.48,0.04316801]
[1740371237019,25.15256215,160.51,160.42,6.2338]
[1740371237223,25.19961693,160.51,160.48,0.04002005]
[1740371237629,0.04705478,160.51,160.48,0.04002005]
[1740371238231,25.19961693,160.51,160.48,2.005e-05]
[1740371238430,25.15256215,160.49,160.48,2.005e-05]
[1740371239126,25.15256215,160.49,160.37,25.15256215]
[1740371239328,25.15256215,160.47,160.37,25.15256215]
[1740371239524,8.66,160.46,160.37,31.38826215]
[1740371239730,8.66,160.46,160.37,25.15256215]
[1740371240327,0.04386748,160.43,160.4,0.04556919]
[1740371240530,0.04386748,160.43,160.4,6.28036919]
[1740371240934,0.04386748,160.43,160.4,0.04556919]
[1740371241633,0.04386748,160.43,160.4,6.28036919]
[1740371244040,0.04386748,160.43,160.4,0.04556919]
[1740371244235,0.04386748,160.43,160.41,25.15256215]
[1740371244439,33.81256215,160.51,160.41,25.15256215]
[1740371244635,8.66,160.51,160.43,6.2335]
[1740371244835,8.66,160.51,160.42,3.8326]
[1740371245040,8.66,160.51,160.43,25.15256215]
[1740371245232,8.66,160.51,160.44,6.233]
[1740371245433,8.66,160.51,160.43,29.04426215]
[1740371245642,0.04404631,160.49,160.46,0.04533162]
[1740371247943,25.19660846,160.49,160.46,0.04533162]
[1740371248138,25.19660846,160.49,160.46,3.162e-05]
[1740371252446,253.52256215,160.48,160.3,68.6516971]
[1740371252648,25.15256215,160.43,160.31,41.56107756]
[1740371252850,8.66,160.42,160.31,41.56107756]
[1740371253045,8.66,160.42,160.32,8.58824586]
[1740371253645,0.0435416,160.39,160.35,0.04501116]
[1740371254241,25.19610375,160.39,160.35,0.04501116]
[1740371255952,25.15256215,160.37,160.35,1.116e-05]
[1740371257652,25.15256215,160.37,160.24,25.15256215]
[1740371257853,25.15256215,160.34,160.24,25.15256215]
[1740371258656,0.04704363,160.31,160.27,0.04423085]
[1740371266161,33.81256215,160.36,160.27,0.04423085]
[1740371266863,33.81256215,160.36,160.28,6.2394]
[1740371267058,33.81256215,160.36,160.29,3.7974]
[1740371267459,0.04457767,160.34,160.31,0.04308036]
[1740371273470,0.04457767,160.34,160.31,6.28118036]
[1740371273961,25.15256215,160.38,160.31,6.28118036]
[1740371273962,25.15256215,160.38,160.32,6.2378]
[1740371274167,25.15256215,160.38,160.31,0.04308036]
[1740371275069,0.04366257,160.36,160.32,6.238]
[1740371276665,25.15256215,160.44,160.34,25.15256215]
[1740371276871,25.15256215,160.44,160.31,0.04308036]
[1740371276872,25.15256215,160.45,160.36,25.15256215]
[1740371277071,25.15256215,160.45,160.37,3.9559]
[1740371277368,25.15256215,160.45,160.37,10.1916]
[1740371277574,25.15256215,160.45,160.37,3.9559]
[1740371277974,0.04746063,160.43,160.39,0.04652591]
[1740371279273,25.20002278,160.43,160.39,0.04652591]
[1740371279868,0.04746063,160.43,160.39,0.04652591]
[1740371280068,11.3553,160.51,160.42,31.38666215]
[1740371280069,25.15256215,160.51,160.42,31.38666215]
[1740371280278,8.66,160.52,160.42,25.15256215]
[1740371281178,0.04453103,160.49,160.45,0.03987733]
[1740371283574,25.19709318,160.49,160.45,0.03987733]
[1740371283879,25.15256215,160.47,160.37,3.9559]
[1740371284181,7.4217,160.48,160.37,3.9559]
[1740371284385,1.12396293,160.47,160.38,25.15256215]
[1740371284680,1.12396293,160.47,160.37,3.9559]
[1740371284979,0.04067583,160.44,160.41,0.04675735]
[1740371285277,25.19323798,160.44,160.41,0.04675735]
[1740371285469,33.85323798,160.44,160.41,5.735e-05]
[1740371286078,25.15256215,160.42,160.41,5.735e-05]
[1740371288684,26.27508399,160.42,160.41,5.735e-05]
[1740371289980,25.15256215,160.42,160.41,5.735e-05]
[1740371290180,26.27488756,160.42,160.41,5.735e-05]
[1740371291280,1.12232541,160.42,160.41,5.735e-05]
[1740371291481,33.85323798,160.44,160.41,5.735e-05]
[1740371291679,1.12131514,160.43,160.41,5.735e-05]
[1740371292275,8.66,160.43,160.41,5.735e-05]
[1740371301488,25.15256215,160.42,160.41,5.735e-05]
[1740371302491,8.66,160.43,160.41,5.735e-05]
[1740371305593,25.15256215,160.42,160.41,5.735e-05]
[1740371305893,26.27347925,160.42,160.41,5.735e-05]
[1740371306690,1.1209171,160.42,160.41,5.735e-05]
[1740371306891,8.66,160.43,160.41,5.735e-05]
[1740371310801,20.09328208,160.43,160.41,5.735e-05]
[1740371312102,8.66,160.43,160.41,5.735e-05]
[1740371313006,20.09667538,160.43,160.41,5.735e-05]
[1740371315910,26.2728062,160.42,160.41,5.735e-05]
[1740371316510,37.70948158,160.42,160.41,5.735e-05]
[1740371317007,25.15256215,160.4,160.32,3.9154]
[1740371317311,25.15256215,160.38,160.28,163.28]
[1740371317514,25.15256215,160.36,160.28,163.28]
[1740371317809,8.64,160.35,160.28,163.28]
[1740371318012,0.04043333,160.34,160.3,0.04648382]
[1740371319911,25.19299548,160.34,160.3,0.04648382]
[1740371320714,36.61768378,160.34,160.3,0.04648382]
[1740371321814,25.19299548,160.34,160.3,8.382e-05]
[1740371323613,25.15256215,160.32,160.3,8.382e-05]
[1740371325716,1.119374,160.31,160.18,25.15256215]
[1740371325914,25.15256215,160.28,160.18,25.15256215]
[1740371326115,8.66,160.27,160.18,25.15256215]
[1740371326914,0.04070072,160.24,160.21,0.04679696]
[1740371330329,0.04070072,160.24,160.21,3.99039696]
[1740371330826,0.04070072,160.24,160.22,3.6965]
[1740371331027,0.04070072,160.24,160.22,7.5072]
[1740371331521,25.15256215,160.32,160.22,7.5072]
[1740371331721,33.81256215,160.32,160.22,32.65976215]
[1740371332124,33.81256215,160.32,160.22,38.90156215]
[1740371332320,25.15256215,160.29,160.22,7.5072]
[1740371332525,25.15256215,160.27,160.22,3.6965]
[1740371332726,25.19792352,160.27,160.24,1.733e-05]
[1740371336324,25.15256215,160.25,160.24,1.733e-05]
[1740371337728,16.16474087,160.25,160.24,1.733e-05]
[1740371339330,17.28359693,160.25,160.17,3.6265]
[1740371339531,16.16474087,160.21,160.17,3.6265]
[1740371340126,8.66,160.24,160.07,163.32]
[1740371340427,16.16474087,160.19,160.14,16.16474087]
[1740371340629,16.16474087,160.19,160.15,3.6747]
[1740371340630,0.0451084,160.17,160.15,3.6747]
[1740371340834,16.16474087,160.19,160.15,7.6059]
[1740371341929,16.20487259,160.19,160.15,7.6059]
[1740371342830,0.04013172,160.19,160.15,7.6059]
[1740371343034,0.04013172,160.19,160.15,23.77064087]
[1740371345736,24.82474087,160.21,160.15,23.77064087]
[1740371346133,16.16474087,160.21,160.15,23.77064087]
[1740371346835,0.04380769,160.2,160.16,6.244]
[1740371347034,0.04380769,160.2,160.15,23.77064087]
[1740371347536,0.04380769,160.2,160.15,30.01524087]
[1740371347738,0.04380769,160.2,160.15,23.77064087]
[1740371348234,16.16474087,160.19,160.15,7.6059]
[1740371351541,16.16474087,160.19,160.15,30.01494087]
[1740371351839,16.16474087,160.19,160.15,23.77064087]
[1740371352229,16.16474087,160.17,160.03,40.80489652]
[1740371352435,16.16474087,160.2,160.14,16.16474087]
[1740371352633,16.16474087,160.18,160.11,16.16474087]
[1740371352834,16.16474087,160.2,160.15,16.16474087]
[1740371353030,16.16474087,160.22,160.15,16.16474087]
[1740371353435,16.16474087,160.22,160.12,11.3445]
[1740371353436,16.16474087,160.18,160.17,0.04544096]
[1740371353631,0.04224388,160.2,160.17,0.04544096]
[1740371357344,25.30771754,160.2,160.17,0.04544096]
[1740371358244,0.04224388,160.2,160.17,0.04544096]
[1740371360038,0.04224388,160.2,160.09,25.26547366]
[1740371360243,1.1230419,160.21,160.1,11.0672]
[1740371360443,26.38851556,160.21,160.1,11.0672]
[1740371360741,33.92547366,160.21,160.1,11.0672]
[1740371361346,0.04123441,160.17,160.14,0.03960629]
[1740371376058,16.21047608,160.17,160.14,0.03960629]
[1740371377762,16.16924167,160.15,160.14,0.03960629]
[1740371377962,0.04123441,160.17,160.14,0.03960629]
[1740371378161,16.16924167,160.16,160.14,0.03960629]
[1740371378565,0.04123441,160.17,160.14,0.03960629]
[1740371387459,0.04123441,160.17,160.14,16.20884796]
[1740371388365,0.04123441,160.17,160.14,22.45374796]
[1740371388565,0.04123441,160.17,160.14,16.20884796]
[1740371389770,16.16924167,160.22,160.16,16.16924167]
[1740371390270,16.16924167,160.2,160.14,16.16924167]
[1740371390867,0.04283672,160.19,160.15,0.04017142]
[1740371391761,0.04283672,160.19,160.16,6.2441]
[1740371391972,0.04283672,160.19,160.16,13.634]
[1740371392171,0.04283672,160.19,160.16,7.3899]
[1740371394272,0.04283672,160.19,160.15,0.04017142]
[1740371394571,16.16924167,160.18,160.15,0.04017142]
[1740371397076,0.04283672,160.19,160.15,0.04017142]
[1740371397565,0.04283672,160.19,160.16,16.16924167]
[1740371397770,0.04283672,160.19,160.16,20.12954167]
[1740371398269,0.04283672,160.19,160.16,3.9603]
[1740371398466,0.04283672,160.19,160.15,0.04017142]
[1740371400474,16.16924167,160.18,160.15,0.04017142]
[1740371401478,0.04283672,160.19,160.15,16.20941309]
[1740371401877,0.04283672,160.19,160.15,0.04017142]
[1740371402174,16.16924167,160.18,160.15,0.04017142]
[1740371403870,0.04283672,160.19,160.15,0.04017142]
[1740371404476,16.16924167,160.18,160.15,0.04017142]
[1740371405577,16.16924167,160.16,160.15,0.04017142]
[1740371407179,16.16924167,160.16,160.09,16.16924167]
[1740371407480,16.16924167,160.14,160.09,16.16924167]
[1740371408082,16.16924167,160.14,160.08,3.9251]
[1740371408281,16.16924167,160.1,160.02,34.28427756]
[1740371408578,34.85924167,160.03,159.94,297.02318542]
[1740371408780,16.16924167,159.95,159.94,1.00825302]
[1740371409180,24.94924167,159.95,159.94,0.80485302]
[1740371409380,24.94924167,159.95,159.94,0.77585302]
[1740371409579,24.94924167,159.95,159.93,337.18076664]
[1740371409580,34.14946039,159.95,159.93,337.18076664]
[1740371409781,8.82,159.94,159.93,307.01851118]
[1740371409985,34.18946039,159.94,159.93,220.84410238]
[1740371410478,43.99006991,159.94,159.93,76.90891376]
[1740371410679,43.99006991,159.94,159.83,0.33724556]
[1740371410883,50.73892078,159.84,159.51,740.99590904]
[1740371411079,25.36946039,159.76,159.52,7.3072]
[1740371411284,9.80060952,159.75,159.74,506.70005449]
[1740371411582,6.67270828,159.75,159.74,506.70005449]
[1740371411778,9.18,159.86,159.74,569.23005449]
[1740371411985,3.12989999,159.85,159.81,62.53]
[1740371412183,3.78722362,159.9,159.85,62.53]
[1740371412384,3.78722362,159.95,159.87,25.36946039]
[1740371412580,3.78722362,159.97,159.9,25.36946039]
[1740371412885,3.12843476,159.94,159.93,87.89946039]
[1740371413086,3.12843476,159.94,159.93,25.36946039]
[1740371413590,0.04089748,159.95,159.92,0.04216614]
[1740371413786,177.67343985,159.94,159.92,0.04216614]
[1740371414585,10.5807947,159.93,159.92,0.04216614]
[1740371414884,10.5807947,159.93,159.92,62.57216614]
[1740371415089,87.27307587,159.93,159.92,62.57216614]
[1740371415387,87.27307587,159.94,159.92,18.93239444]
[1740371415585,87.27307587,159.94,159.93,18.93239444]
[1740371415790,10.45492491,160.04,159.93,59.48330824]
[1740371415986,10.45492491,160.04,159.97,18.93239444]
[1740371416285,3.76548908,160.12,160.03,18.93239444]
[1740371416490,3.76548908,160.13,160.02,40.5509138]
[1740371416678,13.02548908,160.14,160.06,18.93239444]
[1740371416981,40.5509138,160.08,159.93,40.5509138]
[1740371417182,40.5509138,160.05,159.91,3.6543]
[1740371417377,40.5509138,160.02,159.95,18.93239444]
[1740371417579,0.0421057,160.0,159.99,0.04650278]
[1740371417788,0.0421057,160.0,159.89,117.66622102]
[1740371417989,40.5509138,159.97,159.9,18.93239444]
[1740371418288,40.5509138,159.94,159.83,3.5802]
[1740371418489,9.28,159.93,159.83,3.5802]
[1740371418684,9.28,159.93,159.86,6.2557]
[1740371418884,9.28,159.99,159.86,40.59785443]
[1740371419184,9.28,159.99,159.87,6.2554]
[1740371419384,0.04190516,159.94,159.91,0.0446999]
[1740371419892,40.59281896,159.94,159.81,40.5509138]
[1740371420089,40.59281896,159.94,159.8,22.05119807]
[1740371420291,40.5509138,159.94,159.82,6.2574]